bitfinex/quotes_SOLUSD_20250422
["timestamp","ask_amount","ask_price","bid_price","bid_amount"]
[1745281022729,26.0,136.62,136.56,81.8]
[1745281022929,14.60216157,136.61,136.56,81.8]
[1745281024147,7.32064421,136.6,136.56,81.8]
[1745281025237,25.62225475,136.6,136.56,81.8]
[1745281026516,7.32064421,136.6,136.56,81.8]
[1745281028421,7.32064421,136.6,136.52,26.0]
[1745281028422,26.0,136.57,136.49,81.8]
[1745281028739,14.48,136.56,136.45,18.64964886]
[1745281028948,14.48,136.56,136.48,26.0]
[1745281029136,14.48,136.56,136.48,81.8]
[1745281029621,7.32332478,136.55,136.48,81.8]
[1745281030143,18.30069095,136.61,136.51,26.0]
[1745281030451,8.2337,136.63,136.53,0.14216157]
[1745281030758,7.31897685,136.64,136.57,18.79181043]
[1745281031333,7.31897685,136.64,136.57,18.64964886]
[1745281031530,7.31897685,136.64,136.56,26.0]
[1745281032456,6.3639,136.59,136.53,81.8]
[1745281032618,14.48,136.58,136.49,18.64964886]
[1745281032817,0.14216157,136.57,136.49,81.8]
[1745281033630,7.32278851,136.56,136.49,81.8]
[1745281033842,7.32278851,136.56,136.5,18.64964886]
[1745281034047,7.32242959,136.57,136.5,18.64964886]
[1745281034242,14.48,136.56,136.5,18.64964886]
[1745281034438,14.48,136.55,136.49,81.8]
[1745281036659,21.80333524,136.55,136.49,81.8]
[1745281045955,14.48,136.55,136.49,81.8]
[1745281046473,7.32171621,136.58,136.5,18.64964886]
[1745281046632,24.6669036,136.59,136.5,144.48964886]
[1745281046633,14.48,136.57,136.5,144.48964886]
[1745281046833,14.48,136.57,136.53,26.0]
[1745281047062,14.48,136.57,136.53,107.8]
[1745281047450,14.48,136.57,136.53,81.8]
[1745281047648,21.80255371,136.57,136.53,81.8]
[1745281052566,14.48,136.57,136.53,81.8]
[1745281055461,14.48,136.57,136.54,18.64964886]
[1745281055673,22.07029884,136.61,136.54,20.17614886]
[1745281055869,14.75,136.61,136.55,0.14216157]
[1745281056069,14.75,136.61,136.56,18.64964886]
[1745281058578,22.07032727,136.61,136.55,81.8]
[1745281060061,40.37059811,136.61,136.55,81.8]
[1745281065676,6.51246157,136.6,136.55,81.8]
[1745281066379,6.51246157,136.6,136.5,102.03714886]
[1745281067279,7.32118017,136.59,136.5,102.03714886]
[1745281068680,25.6241306,136.59,136.5,102.03714886]
[1745281069077,1.5703,136.57,136.5,81.8]
[1745281069282,14.72,136.56,136.5,81.8]
[1745281070187,7.32332478,136.55,136.5,81.8]
[1745281071081,25.63163675,136.55,136.5,81.8]
[1745281071885,0.14216157,136.54,136.46,83.3875]
[1745281072071,6.3703,136.53,136.46,81.8]
[1745281072271,7.32493407,136.52,136.46,81.8]
[1745281072479,14.72,136.51,136.46,81.8]
[1745281072967,16.2787,136.51,136.46,81.8]
[1745281073655,0.14216157,136.5,136.46,81.8]
[1745281073862,26.0,136.46,136.42,81.8]
[1745281074059,14.72,136.45,136.42,81.8]
[1745281074272,7.32922896,136.44,136.38,83.5181]
[1745281075061,22.04879677,136.45,136.38,83.5181]
[1745281077088,40.37052634,136.45,136.38,81.863]
[1745281077490,1.5587,136.44,136.38,81.863]
[1745281077669,0.14216157,136.43,136.38,81.863]
[1745281078864,1.5587,136.44,136.38,81.863]
[1745281079071,7.32976618,136.43,136.38,81.863]
[1745281079891,16.2587,136.48,136.42,26.0]
[1745281080087,16.2587,136.48,136.42,107.8]
[1745281080667,23.58596902,136.48,136.42,81.8]
[1745281081075,49.58596902,136.48,136.42,81.8]
[1745281081993,26.14216157,136.44,136.38,81.863]
[1745281082198,14.7,136.43,136.38,81.863]
[1745281082884,14.7,136.43,136.39,18.64964886]
[1745281085094,22.02989981,136.43,136.38,81.863]
[1745281085690,14.7,136.43,136.39,18.64964886]
[1745281086206,14.7,136.43,136.42,26.0]
[1745281086396,14.7,136.47,136.42,107.8]
[1745281086793,14.7,136.47,136.43,18.64964886]
[1745281087402,14.7,136.5,136.44,0.14216157]
[1745281087710,14.7,136.5,136.44,81.8]
[1745281089222,251.22,136.51,136.45,18.64964886]
[1745281089399,265.92,136.51,136.45,18.64964886]
[1745281089596,273.24554866,136.51,136.45,18.64964886]
[1745281090190,273.24554866,136.51,136.44,81.8]
[1745281090606,6.77856157,136.5,136.44,81.8]
[1745281091313,7.32654406,136.49,136.44,81.8]
[1745281092107,265.92,136.51,136.44,81.8]
[1745281092317,265.92,136.51,136.44,107.8]
[1745281092494,265.92,136.51,136.45,18.64964886]
[1745281092895,273.24555798,136.51,136.45,18.64964886]
[1745281093294,273.24555798,136.51,136.44,107.8]
[1745281093897,265.92,136.51,136.45,18.64964886]
[1745281094815,273.24559453,136.51,136.44,107.8]
[1745281095419,273.24559453,136.51,136.44,81.8]
[1745281095420,8.2338,136.5,136.44,81.8]
[1745281097116,14.7,136.49,136.44,81.8]
[1745281097318,7.32708089,136.48,136.44,81.8]
[1745281099424,22.0267638,136.49,136.44,81.8]
[1745281099621,14.7,136.49,136.44,81.8]
[1745281100738,14.7,136.49,136.45,44.79181043]
[1745281100921,14.7,136.49,136.45,50.96081043]
[1745281101229,14.7,136.53,136.47,0.14216157]
[1745281101538,22.0248168,136.53,136.47,81.8]
[1745281103213,14.7,136.53,136.48,18.79181043]
[1745281103414,14.7,136.53,136.48,44.79181043]
[1745281104332,14.7,136.53,136.48,44.64964886]
[1745281104516,14.7,136.53,136.48,26.0]
[1745281105633,22.02442177,136.53,136.48,26.0]
[1745281105824,22.02442177,136.53,136.47,81.8]
[1745281106339,14.7,136.53,136.47,81.8]
[1745281106836,22.02443852,136.53,136.47,81.8]
[1745281107529,40.33543244,136.53,136.47,81.8]
[1745281112058,26.0,136.5,136.44,81.8]
[1745281112238,25.7850658,136.49,136.44,81.8]
[1745281112439,14.84,136.48,136.44,81.8]
[1745281112832,14.84,136.48,136.39,106.59944886]
[1745281113033,0.14216157,136.47,136.39,87.9498]
[1745281113246,0.14216157,136.47,136.39,81.8]
[1745281114048,14.84,136.48,136.4,18.64964886]
[1745281114271,22.16731493,136.48,136.4,18.64964886]
[1745281114550,40.48501715,136.48,136.39,81.8]
[1745281114731,0.14216157,136.47,136.39,81.8]
[1745281115946,7.32815477,136.46,136.39,81.8]
[1745281116447,7.32815477,136.46,136.4,18.64964886]
[1745281117335,33.15770222,136.48,136.39,81.8]
[1745281117336,45.78882383,136.47,136.39,81.8]
[1745281117532,26.0,136.44,136.39,81.8]
[1745281117733,14.84,136.43,136.39,81.8]
[1745281119643,22.16990161,136.43,136.39,81.8]
[1745281122251,14.84,136.43,136.39,81.8]
[1745281122430,14.84,136.47,136.4,18.64964886]
[1745281122635,14.84,136.47,136.42,18.64964886]
[1745281122849,14.84,136.47,136.42,100.44964886]
[1745281123735,14.84,136.47,136.42,81.8]
[1745281124046,22.16768709,136.47,136.42,81.8]
[1745281124245,14.84,136.47,136.42,81.8]
[1745281124445,14.84,136.47,136.43,18.64964886]
[1745281124636,14.84,136.47,136.43,100.44964886]
[1745281125354,14.84,136.47,136.43,81.8]
[1745281125650,22.1676314,136.47,136.43,81.8]
[1745281126236,1.601,136.46,136.43,81.8]
[1745281127235,0.14216157,136.45,136.38,81.863]
[1745281127746,27.601,136.46,136.38,81.863]
[1745281128256,7.32869182,136.45,136.38,81.863]
[1745281128954,25.65042139,136.45,136.38,81.863]
[1745281132159,0.14216157,136.44,136.38,81.863]
[1745281133868,7.32976618,136.43,136.38,81.863]
[1745281134048,14.86,136.42,136.38,81.863]
[1745281134870,22.19075248,136.42,136.38,81.863]
[1745281135676,14.86,136.42,136.38,81.863]
[1745281136045,22.19035662,136.42,136.38,81.863]
[1745281141265,40.5161153,136.42,136.38,0.063]
[1745281142065,22.19035662,136.42,136.38,0.063]
[1745281142568,22.19035662,136.42,136.38,81.863]
[1745281144284,14.86,136.42,136.38,81.863]
[1745281144454,14.86,136.42,136.38,83.4411]
[1745281146270,14.8,136.46,136.39,18.64964886]
[1745281146450,14.8,136.46,136.39,126.44964886]
[1745281146649,14.8,136.46,136.43,18.79181043]
[1745281146865,14.8,136.5,136.44,1.5781]
[1745281147883,22.126141,136.5,136.44,1.5781]
[1745281150178,14.8,136.5,136.45,18.64964886]
[1745281150474,14.8,136.5,136.46,0.14216157]
[1745281150769,14.8,136.54,136.46,81.94216157]
[1745281151075,14.8,136.54,136.5,0.14216157]
[1745281151379,14.8,136.54,136.51,18.64964886]
[1745281151977,14.8,136.54,136.52,0.14216157]
[1745281154050,0.03,136.55,136.52,0.14216157]
[1745281156288,0.03,136.55,136.53,18.64964886]
[1745281156490,0.03,136.55,136.53,81.8]
[1745281156969,0.03,136.55,136.5,81.8]
[1745281158180,0.03,136.55,136.51,18.64964886]
[1745281158849,0.03,136.55,136.52,0.14216157]
[1745281160372,0.03,136.55,136.51,100.44964886]
[1745281160768,0.03,136.55,136.52,0.14216157]
[1745281161579,0.03,136.55,136.54,44.79181043]
[1745281161789,0.03,136.55,136.54,126.59181043]
[1745281162575,0.03,136.56,136.55,100.41964886]
[1745281163163,0.03,136.56,136.55,100.56181043]
[1745281163362,0.03,136.56,136.55,100.41964886]
[1745281164075,0.03,136.56,136.55,81.77]
[1745281164370,0.03,136.56,136.55,100.56181043]
[1745281168885,0.03,136.56,136.55,126.41964886]
[1745281169265,0.03,136.56,136.55,126.56181043]
[1745281170161,0.03,136.56,136.55,144.50181043]
[1745281171198,0.03,136.59,136.58,18.79181043]
[1745281171394,0.03,136.59,136.58,100.53181043]
[1745281171698,0.03,136.61,136.6,44.79181043]
[1745281171877,0.03,136.63,136.61,62.73181043]
[1745281173602,0.03,136.67,136.65,18.79181043]
[1745281173782,0.03,136.67,136.65,100.53181043]
[1745281174797,0.03,136.67,136.65,144.47181043]
[1745281176104,0.03,136.67,136.65,100.53181043]
[1745281176398,0.03,136.67,136.65,100.38964886]
[1745281179000,0.03,136.67,136.65,81.74]
[1745281180903,0.03,136.67,136.66,18.64964886]
[1745281181296,0.03,136.67,136.65,81.74]
[1745281181803,0.03,136.67,136.66,18.64964886]
[1745281182698,0.03,136.67,136.66,18.79181043]
[1745281185623,0.03,136.67,136.66,100.38964886]
[1745281185910,0.03,136.67,136.66,81.74]
[1745281189019,0.03,136.67,136.66,100.53181043]
[1745281191218,0.03,136.67,136.66,100.38964886]
[1745281192908,0.03,136.67,136.66,100.53181043]
[1745281195422,0.03,136.67,136.66,100.38964886]
[1745281195630,0.03,136.67,136.66,81.74]
[1745281197622,1.6305,136.67,136.66,81.74]
[1745281198220,1.6305,136.67,136.61,81.74]
[1745281198413,7.3179656,136.65,136.61,81.74]
[1745281199019,25.61287961,136.65,136.61,81.74]
[1745281199707,7.3179656,136.65,136.61,81.74]
[1745281200927,7.3179656,136.65,136.57,81.803]
[1745281201709,1.6005,136.63,136.57,81.803]
[1745281202732,7.31957253,136.62,136.57,81.803]
[1745281202928,14.76,136.61,136.57,81.803]
[1745281203736,14.76,136.61,136.58,18.64964886]
[1745281205835,22.08011829,136.61,136.57,81.803]
[1745281207239,22.08012939,136.61,136.57,81.803]
[1745281208833,40.38040023,136.61,136.57,81.803]
[1745281209048,8.90761621,136.58,136.57,0.063]
[1745281209419,14.76,136.61,136.57,0.063]
[1745281209752,14.76,136.61,136.57,81.803]
[1745281209914,40.38061065,136.61,136.57,0.063]
[1745281210114,0.14216157,136.6,136.57,0.063]
[1745281210539,40.38061065,136.61,136.57,0.063]
[1745281210729,22.08033981,136.61,136.57,0.063]
[1745281211245,14.76,136.61,136.57,81.803]
[1745281211447,22.08019149,136.61,136.57,81.803]
[1745281213631,40.38046233,136.61,136.57,0.063]
[1745281214253,23.66570274,136.62,136.57,0.063]
[1745281214422,23.66570274,136.62,136.57,81.803]
[1745281218737,41.96463408,136.62,136.57,81.803]
[1745281218942,41.96463408,136.62,136.57,0.063]
[1745281222448,26.14216157,136.61,136.57,0.063]
[1745281224151,25.62225475,136.6,136.57,0.063]
[1745281224453,7.32064421,136.6,136.57,0.063]
[1745281225553,16.3459,136.62,136.57,81.803]
[1745281225742,14.76,136.62,136.57,81.803]
[1745281226357,22.07978788,136.62,136.57,81.803]
[1745281226770,22.07978788,136.62,136.57,107.803]
[1745281226771,14.76,136.62,136.57,107.803]
[1745281226977,14.76,136.62,136.57,109.4536]
[1745281227137,22.07961819,136.62,136.57,109.4536]
[1745281228162,14.76,136.62,136.57,109.4536]
[1745281228658,22.07961837,136.62,136.57,109.4536]
[1745281229043,22.07961837,136.62,136.57,107.803]
[1745281229541,22.07961837,136.62,136.57,81.803]
[1745281229738,26.0,136.61,136.57,0.063]
[1745281230260,7.32064421,136.6,136.57,0.063]
[1745281231146,7.32032167,136.61,136.57,0.063]
[1745281233469,48.07974739,136.62,136.57,0.063]
[1745281234444,22.07974739,136.62,136.57,0.063]
[1745281235557,22.07974739,136.62,136.57,81.803]
[1745281236141,14.76,136.62,136.57,81.803]
[1745281237461,22.07959813,136.62,136.57,81.803]
[1745281239362,40.37852947,136.62,136.57,81.803]
[1745281243869,22.07959813,136.62,136.57,81.803]
[1745281246177,14.76,136.62,136.57,81.803]
[1745281248257,22.0795944,136.62,136.57,81.803]
[1745281256175,14.76,136.62,136.58,18.64964886]
[1745281259686,14.76,136.62,136.58,20.21184886]
[1745281259990,14.76,136.62,136.59,0.14216157]
[1745281261092,14.76,136.62,136.58,101.95184886]
[1745281262975,22.07988702,136.62,136.58,81.74]
[1745281263380,22.07988702,136.62,136.57,0.063]
[1745281263381,26.0,136.59,136.57,0.063]
[1745281263579,7.32171621,136.58,136.57,0.063]
[1745281264976,25.7681683,136.58,136.53,81.74]
[1745281265181,22.932,136.57,136.49,81.803]
[1745281265674,25.6297598,136.56,136.49,81.803]
[1745281265870,51.6297598,136.56,136.49,81.803]
[1745281266072,26.0,136.52,136.49,0.063]
[1745281266393,40.8,136.52,136.49,0.063]
[1745281266593,40.94216157,136.52,136.49,0.063]
[1745281267996,48.26709564,136.52,136.49,0.063]
[1745281268777,48.12493407,136.52,136.49,0.063]
[1745281269900,48.26709564,136.52,136.49,0.063]
[1745281271778,48.12493407,136.52,136.49,0.063]
[1745281272103,22.12493407,136.52,136.49,0.063]
[1745281272498,14.8,136.52,136.49,0.063]
[1745281272692,22.12493407,136.52,136.49,0.063]
[1745281273382,14.8,136.52,136.49,0.063]
[1745281276100,22.12493407,136.52,136.49,0.063]
[1745281278196,14.8,136.52,136.49,0.063]
[1745281280076,14.8,136.56,136.51,81.803]
[1745281280283,14.8,136.56,136.52,18.64964886]
[1745281280586,14.8,136.56,136.53,0.14216157]
[1745281282899,14.8,136.56,136.52,81.74]
[1745281283100,22.12282234,136.56,136.52,81.74]
[1745281290305,48.12282234,136.56,136.51,0.063]
[1745281290508,66.42979363,136.56,136.51,0.063]
[1745281291001,22.12282234,136.56,136.51,0.063]
[1745281294184,22.12282234,136.56,136.51,81.803]
[1745281300000,14.8,136.56,136.51,81.803]
[1745281301013,22.12283168,136.56,136.51,81.803]
[1745281303512,22.12283168,136.56,136.51,0.063]
[1745281303807,40.42980297,136.56,136.51,0.063]
[1745281306021,66.42980297,136.56,136.51,0.063]
[1745281310701,48.12283168,136.56,136.51,0.063]
[1745281312025,40.8,136.56,136.51,81.803]
[1745281312198,14.8,136.56,136.51,81.803]
[1745281313110,22.12289306,136.56,136.51,81.803]
[1745281315524,14.8,136.56,136.51,81.803]
[1745281317424,22.12281205,136.56,136.51,81.803]
[1745281318424,14.8,136.56,136.51,81.803]
[1745281318620,14.8,136.56,136.52,18.64964886]
[1745281319000,14.8,136.56,136.53,0.14216157]
[1745281319325,266.0,136.6,136.55,18.64964886]
[1745281319527,266.0,136.6,136.55,100.38964886]
[1745281321018,266.0,136.6,136.56,0.14216157]
[1745281321220,14.78,136.6,136.56,0.14216157]
[1745281322411,22.1007488,136.6,136.55,100.38964886]
[1745281323439,22.1007488,136.6,136.55,81.74]
[1745281323730,66.40235934,136.6,136.55,81.74]
[1745281325720,66.40235934,136.6,136.51,100.45264886]
[1745281331534,48.1007488,136.6,136.51,100.45264886]
[1745281331839,22.1007488,136.6,136.52,0.14216157]
[1745281335140,40.40235934,136.6,136.51,100.45264886]
[1745281337250,40.40235934,136.6,136.52,0.14216157]
[1745281340742,22.1007488,136.6,136.52,0.14216157]
[1745281341146,22.1007488,136.6,136.54,0.14216157]
[1745281341326,22.1007488,136.6,136.55,18.64964886]
[1745281342046,14.78,136.6,136.56,0.14216157]
[1745281342352,14.78,136.6,136.58,18.64964886]
[1745281342644,0.03,136.63,136.59,0.14216157]
[1745281342846,0.03,136.63,136.6,18.64964886]
[1745281344425,0.03,136.63,136.59,81.74]
[1745281345126,0.03,136.63,136.6,18.64964886]
[1745281349148,0.03,136.63,136.59,81.74]
[1745281349833,0.03,136.63,136.6,18.64964886]
[1745281350437,0.03,136.63,136.59,81.74]
[1745281350643,0.03,136.63,136.56,81.74]
[1745281353973,8.2072,136.62,136.56,81.74]
[1745281356174,7.32010833,136.61,136.56,81.74]
[1745281357878,7.31977483,136.62,136.57,18.64964886]
[1745281358060,14.6,136.62,136.57,18.64964886]
[1745281358551,21.91967005,136.62,136.57,18.64964886]
[1745281358853,21.91967005,136.62,136.57,100.38964886]
[1745281359572,14.6,136.62,136.57,100.38964886]
[1745281360874,21.91960464,136.62,136.57,81.74]
[1745281361674,40.21853598,136.62,136.57,81.74]
[1745281361862,21.91960464,136.62,136.57,81.74]
[1745281364161,40.21853598,136.62,136.57,81.74]
[1745281364557,40.21853598,136.62,136.54,126.38964886]
[1745281364756,21.91960464,136.62,136.55,18.64964886]
[1745281366579,21.91960464,136.62,136.54,81.74]
[1745281367773,40.21853598,136.62,136.54,81.74]
[1745281368168,21.91960464,136.62,136.55,18.64964886]
[1745281369496,21.91960464,136.62,136.54,81.74]
[1745281370083,40.21853598,136.62,136.54,81.74]
[1745281370260,1.5316,136.61,136.54,81.74]
[1745281371787,26.0,136.59,136.54,81.74]
[1745281373389,7.32064421,136.6,136.54,81.74]
[1745281375188,21.92154398,136.59,136.54,81.74]
[1745281377195,47.92154398,136.59,136.54,81.74]
[1745281380472,14.6,136.59,136.55,18.64964886]
[1745281380877,21.92120708,136.59,136.54,81.74]
[1745281382377,40.22415751,136.59,136.52,1.5922]
[1745281383168,66.22415751,136.59,136.51,100.45264886]
[1745281383571,26.0,136.55,136.51,0.063]
[1745281383778,14.54,136.54,136.51,0.063]
[1745281383984,14.54,136.54,136.51,81.803]
[1745281384676,21.86414799,136.54,136.51,81.803]
[1745281385998,21.86414799,136.54,136.51,0.063]
[1745281386209,23.40944799,136.54,136.51,0.063]
[1745281386507,33.32493407,136.52,136.51,0.063]
[1745281386814,7.32462774,136.53,136.51,0.063]
[1745281388101,23.40936302,136.54,136.51,0.063]
[1745281388277,21.86406302,136.54,136.51,0.063]
[1745281388983,14.54,136.54,136.51,0.063]
[1745281389684,14.54,136.54,136.51,18.71264886]
[1745281390195,21.86181278,136.58,136.51,18.71264886]
[1745281391392,47.86181278,136.58,136.51,0.063]
[1745281396122,26.0,136.55,136.51,0.063]
[1745281396517,27.504,136.55,136.51,0.063]
[1745281396713,26.0,136.52,136.51,0.063]
[1745281396904,40.54,136.52,136.51,0.063]
[1745281397296,60.68216157,136.52,136.5,0.063]
[1745281397496,7.46763223,136.51,136.5,0.063]
[1745281402322,7.32547066,136.51,136.5,0.063]
[1745281403116,7.46763223,136.51,136.5,0.063]
[1745281407424,47.86516776,136.52,136.5,0.063]
[1745281408904,40.54,136.52,136.5,0.063]
[1745281409727,47.86515004,136.52,136.5,0.063]
[1745281410837,67.86515004,136.52,136.5,0.063]
[1745281411046,0.14216157,136.51,136.5,0.063]
[1745281411952,46.0,136.5,136.49,0.063]
[1745281412242,46.90611043,136.5,136.49,1e-08]
[1745281412645,18.79181043,136.49,136.48,1e-08]
[1745281412946,26.0,136.46,136.45,0.063]
[1745281413116,40.8,136.46,136.45,0.063]
[1745281413316,14.8,136.46,136.45,0.063]
[1745281413517,40.8,136.46,136.45,0.063]
[1745281414739,48.12815477,136.46,136.45,0.063]
[1745281414924,48.27031634,136.46,136.45,0.063]
[1745281418142,48.12815477,136.46,136.45,0.063]
[1745281420050,48.12815477,136.46,136.45,0.063]
[1745281424651,14.8,136.46,136.45,0.063]
[1745281424858,7.32439756,136.53,136.45,0.063]
[1745281425043,14.8,136.52,136.45,0.063]
[1745281425244,40.8,136.52,136.45,0.063]
[1745281425752,40.8,136.52,136.45,18.71264886]
[1745281425958,48.12511847,136.52,136.45,18.71264886]
[1745281426662,22.12511847,136.52,136.45,18.71264886]
[1745281427051,33.32554428,136.51,136.45,18.71264886]
[1745281428565,33.32554428,136.51,136.45,0.063]
[1745281437772,26.0,136.51,136.45,18.71264886]
[1745281437974,14.8,136.52,136.45,100.45264886]
[1745281438178,14.8,136.52,136.46,0.14216157]
[1745281438563,14.8,136.52,136.49,26.27814886]
[1745281438756,14.8,136.52,136.49,108.01814886]
[1745281444867,14.8,136.52,136.49,81.74]
[1745281445177,22.12501413,136.52,136.49,81.74]
[1745281445369,22.12501413,136.52,136.45,89.4315]
[1745281450872,22.12501413,136.52,136.45,83.41]
[1745281451695,14.8,136.52,136.46,18.64964886]
[1745281452069,14.8,136.52,136.47,0.14216157]
[1745281452282,14.8,136.52,136.48,0.14216157]
[1745281452485,14.8,136.52,136.49,18.64964886]
[1745281453386,14.8,136.52,136.48,81.74]
[1745281455086,22.12498981,136.52,136.48,81.74]
[1745281456577,22.12498981,136.52,136.45,102.05964886]
[1745281456759,22.12498981,136.52,136.45,83.41]
[1745281462289,23.71848981,136.52,136.45,83.41]
[1745281462502,14.8,136.52,136.46,18.79181043]
[1745281462673,14.8,136.52,136.46,50.82471043]
[1745281463871,14.8,136.52,136.46,50.68254886]
[1745281466997,14.8,136.52,136.47,0.14216157]
[1745281467181,14.8,136.52,136.48,18.64964886]
[1745281467496,14.8,136.52,136.48,100.38964886]
[1745281468793,14.8,136.52,136.48,81.74]
[1745281471588,42.2748,136.56,136.49,18.64964886]
[1745281471795,42.2748,136.56,136.49,100.38964886]
[1745281471982,49.59770889,136.56,136.49,100.38964886]
[1745281472897,49.59770889,136.56,136.49,81.74]
[1745281474705,67.90468018,136.56,136.49,81.74]
[1745281475109,49.59770889,136.56,136.49,81.74]
[1745281476509,21.96242721,136.57,136.5,18.64964886]
[1745281478024,14.64,136.57,136.51,0.14216157]
[1745281479988,14.64,136.57,136.53,26.0]
[1745281480191,14.64,136.57,136.54,18.64964886]
[1745281480503,0.063,136.58,136.55,0.14216157]
[1745281481312,0.063,136.58,136.55,18.79181043]
[1745281483017,0.063,136.58,136.54,81.74]
[1745281485319,0.063,136.58,136.55,18.64964886]
[1745281487027,0.063,136.58,136.55,100.38964886]
[1745281488105,0.063,136.58,136.57,44.64964886]
[1745281492428,21.52319871,136.61,136.55,107.88216157]
[1745281492613,21.52319871,136.61,136.56,18.64964886]
[1745281493025,29.50259871,136.61,136.52,7.7139]
[1745281493331,29.50259871,136.61,136.53,26.0]
[1745281493332,47.80286955,136.61,136.53,26.0]
[1745281493710,26.0,136.6,136.5,81.74]
[1745281493911,26.0,136.6,136.51,18.64964886]
[1745281494325,26.0,136.6,136.51,100.38964886]
[1745281495130,7.32118017,136.59,136.51,100.38964886]
[1745281495734,25.6241306,136.59,136.51,100.38964886]
[1745281497627,25.6241306,136.59,136.51,81.74]
[1745281499746,45.6241306,136.59,136.51,81.74]
[1745281499927,0.14216157,136.58,136.48,107.74]
[1745281500335,26.0,136.56,136.48,107.74]
[1745281500627,22.5396,136.55,136.48,81.74]
[1745281502048,7.32386113,136.54,136.48,81.74]
[1745281507237,14.64,136.55,136.49,18.64964886]
[1745281507418,14.64,136.55,136.5,0.14216157]
[1745281507617,14.64,136.55,136.49,52.72634886]
[1745281508424,14.64,136.55,136.49,134.46634886]
[1745281509144,21.96346169,136.55,136.49,134.46634886]
[1745281510329,14.64,136.55,136.49,134.46634886]
[1745281510526,14.64,136.55,136.5,0.14216157]
[1745281510723,14.64,136.55,136.53,18.64964886]
[1745281510930,14.64,136.55,136.53,81.74]
[1745281511444,14.72,136.59,136.54,18.64964886]
[1745281511736,14.72,136.59,136.54,100.38964886]
[1745281512154,14.72,136.59,136.55,0.14216157]
[1745281515234,14.72,136.59,136.55,109.48276157]
[1745281515435,14.75,136.63,136.57,0.14216157]
[1745281515644,0.03,136.63,136.57,81.88216157]
[1745281519679,0.03,136.63,136.57,81.74]
[1745281520744,0.03,136.63,136.58,18.64964886]
[1745281520948,0.03,136.63,136.58,100.38964886]
[1745281522346,0.03,136.63,136.58,81.74]
[1745281525750,25.61850387,136.62,136.54,18.64964886]
[1745281526058,25.61850387,136.62,136.54,100.38964886]
[1745281532565,7.31957253,136.62,136.55,0.14216157]
[1745281533352,33.34925106,136.63,136.55,0.14216157]
[1745281533555,0.03,136.63,136.58,18.64964886]
[1745281533766,0.03,136.63,136.58,100.38964886]
[1745281544474,0.03,136.63,136.59,0.14216157]
[1745281545275,0.03,136.63,136.58,100.38964886]
[1745281545457,0.03,136.63,136.59,0.14216157]
[1745281549485,0.03,136.63,136.6,18.64964886]
[1745281550063,0.03,136.63,136.59,81.74]
[1745281552684,1.6908,136.63,136.59,81.74]
[1745281553564,1.6908,136.63,136.55,126.38964886]
[1745281553768,1.6908,136.63,136.55,100.38964886]
[1745281554968,7.31957253,136.62,136.55,100.38964886]
[1745281561188,19.98853347,136.63,136.56,0.14216157]
[1745281561189,9.0100527,136.63,136.56,0.14216157]
[1745281561890,7.3492527,136.63,136.56,0.14216157]
[1745281562069,0.03,136.63,136.59,18.64964886]
[1745281562277,0.03,136.63,136.59,100.38964886]
[1745281572900,0.03,136.63,136.59,144.34964886]